fUST/lending_fUST_20250220
["ID","MTS","AMOUNT","RATE_DAILY","PERIOD"]
[353747770,1740006649157,-3475.13,0.00014602,2]
[353747772,1740006649167,-5314.33,0.00014602,2]
[353747774,1740006649176,-1146.81,0.00014602,2]
[353747776,1740006649187,-563.27,0.00014602,2]
[353747778,1740006649197,-444.16975498,0.00014646,2]
[353747780,1740006649207,-152.34220995,0.00014663,2]
[353747782,1740006649216,-500.0,0.00014684,2]
[353747784,1740006649226,-500.0,0.00014684,2]
[353747786,1740006649235,-500.0,0.00014684,2]
[353747788,1740006649245,-544.64460191,0.00014684,2]
[353747790,1740006649255,-585.01,0.00014684,2]
[353747792,1740006649265,-468.75,0.00014684,2]
[353747794,1740006649275,-500.0,0.00014684,2]
[353747796,1740006649286,-529.09,0.00014684,2]
[353747798,1740006649295,-11508.54,0.00014684,2]
[353747800,1740006649306,-750.28,0.00014684,2]
[353747802,1740006649315,-500.0,0.00014684,2]
[353747804,1740006649325,-535.76,0.00014684,2]
[353747806,1740006649334,-632.77,0.00014684,2]
[353747808,1740006649344,-990.88,0.00014684,2]
[353747810,1740006649354,-500.0,0.00014684,2]
[353747812,1740006649365,-1669.77,0.00014684,2]
[353747814,1740006649374,-4618.8,0.00014684,2]
[353747816,1740006649384,-1394.4,0.00014684,2]
[353747818,1740006649394,-500.0,0.00014684,2]
[353747820,1740006649404,-652.02,0.00014684,2]
[353747822,1740006649415,-500.0,0.00014684,2]
[353747824,1740006649424,-1090.49,0.00014684,2]
[353747826,1740006649434,-500.0,0.00014684,2]
[353747828,1740006649445,-610.05,0.00014684,2]
[353747830,1740006649455,-624.57,0.00014684,2]
[353747832,1740006649465,-661.15,0.00014684,2]
[353747834,1740006649475,-500.0,0.00014684,2]
[353747836,1740006649485,-589.5,0.00014684,2]
[353747838,1740006649496,-1483.21,0.00014684,2]
[353747840,1740006649506,-3475.13,0.00014684,2]
[353747842,1740006649516,-5314.33,0.00014684,2]
[353747844,1740006649525,-1146.81,0.00014684,2]
[353747845,1740006649535,-563.27,0.00014684,2]
[353747846,1740006649545,-151.0,0.000147,2]
[353747847,1740006649555,-191.88081188,0.000147,2]
[353747848,1740006649565,-191.88,0.000147,2]
[353747849,1740006649575,-151.0,0.000147,2]
[353747850,1740006649585,-153.0,0.00014712,2]
[353747852,1740006649595,-153.0,0.00014712,2]
[353747854,1740006649604,-153.0,0.00014712,2]
[353747856,1740006649614,-153.0,0.00014712,2]
[353747858,1740006649623,-1044.969,0.0001475,2]
[353747860,1740006649633,-168.169,0.0001475,2]
[353747862,1740006649642,-541.68280652,0.00014767,2]
[353747864,1740006649653,-500.0,0.00014767,2]
[353747866,1740006649665,-500.0,0.00014767,2]
[353747869,1740006649675,-585.01,0.00014767,2]
[353747871,1740006649685,-500.0,0.00014767,2]
[353747873,1740006649694,-529.09,0.00014767,2]
[353747875,1740006649705,-11508.54,0.00014767,2]
[353747877,1740006649714,-500.0,0.00014767,2]
[353747878,1740006649723,-750.28,0.00014767,2]
[353747879,1740006649733,-535.76,0.00014767,2]
[353747880,1740006649744,-632.77,0.00014767,2]
[353747881,1740006649753,-990.88,0.00014767,2]
[353747882,1740006649763,-500.0,0.00014767,2]
[353747883,1740006649772,-1669.77,0.00014767,2]
[353747884,1740006649782,-4618.8,0.00014767,2]
[353747885,1740006649791,-1394.4,0.00014767,2]
[353747886,1740006649801,-500.0,0.00014767,2]
[353747887,1740006649810,-652.02,0.00014767,2]
[353747888,1740006649819,-500.0,0.00014767,2]
[353747889,1740006649829,-1090.49,0.00014767,2]
[353747890,1740006649838,-500.0,0.00014767,2]
[353747891,1740006649848,-610.05,0.00014767,2]
[353747892,1740006649857,-624.57,0.00014767,2]
[353747893,1740006649867,-661.15,0.00014767,2]
[353747894,1740006649878,-500.0,0.00014767,2]
[353747895,1740006649887,-589.5,0.00014767,2]
[353747898,1740006649897,-1483.21,0.00014767,2]
[353747900,1740006649907,-3475.13,0.00014767,2]
[353747901,1740006649916,-5314.33,0.00014767,2]
[353747904,1740006649926,-1146.81,0.00014767,2]
[353747906,1740006649935,-563.27,0.00014767,2]
[353747908,1740006649945,-13275.53870192,0.0001479,2]
[353747910,1740006649954,-1000.0,0.00014795,2]
[353747912,1740006649965,-151.0,0.000148,2]
[353747914,1740006649974,-151.0,0.000148,2]
[353747916,1740006649985,-43662.9841664,0.000148,2]
[353747918,1740006649994,-179.08875776,0.000148,2]
[353747920,1740006650004,-179.08875776,0.000148,2]
[353747922,1740006650014,-179.08875776,0.000148,2]
[353747924,1740006650023,-179.08875776,0.000148,2]
[353747926,1740006650032,-179.08,0.000148,2]
[353747928,1740006650041,-500.0,0.00014849,2]
[353747930,1740006650050,-500.0,0.00014849,2]
[353747932,1740006650059,-585.01,0.00014849,2]
[353747934,1740006650069,-500.0,0.00014849,2]
[353747936,1740006650079,-529.09,0.00014849,2]
[353747938,1740006650088,-11508.54,0.00014849,2]
[353747940,1740006650097,-500.0,0.00014849,2]
[353747942,1740006650107,-750.28,0.00014849,2]
[353747944,1740006650116,-535.76,0.00014849,2]
[353747946,1740006650126,-632.77,0.00014849,2]
[353747948,1740006650134,-990.88,0.00014849,2]
[353747950,1740006650143,-500.0,0.00014849,2]
[353747952,1740006650153,-1669.77,0.00014849,2]
[353747954,1740006650162,-4618.8,0.00014849,2]
[353747956,1740006650171,-1394.4,0.00014849,2]
[353747958,1740006650181,-500.0,0.00014849,2]
[353747970,1740006650297,-652.02,0.00014849,2]
[353747972,1740006650307,-260.13999994,0.00014849,2]
[353747975,1740006650318,-1090.49,0.00014849,2]
[353747976,1740006650327,-500.0,0.00014849,2]
[353747978,1740006650337,-610.05,0.00014849,2]
[353747980,1740006650346,-624.57,0.00014849,2]
[353747983,1740006650356,-661.15,0.00014849,2]
[353747985,1740006650368,-500.0,0.00014849,2]
[353747987,1740006650380,-589.5,0.00014849,2]
[353747989,1740006650391,-1483.21,0.00014849,2]
[353747991,1740006650405,-3475.13,0.00014849,2]
[353747992,1740006650419,-5314.33,0.00014849,2]
[353747994,1740006650428,-1146.81,0.00014849,2]
[353747996,1740006650438,-563.27,0.00014849,2]
[353747998,1740006650447,-1000.0,0.0001486,2]
[353748000,1740006650457,-500.0,0.00014873,2]
[353748002,1740006650466,-427.85438938,0.00014899,2]
[353748004,1740006650476,-151.0,0.00014899,2]
[353748006,1740006650485,-55271.63451245,0.000149,5]
[353748022,1740006650642,-440.87003063,0.000149,5]
[353748025,1740006650655,-889.52865173,0.000149,5]
[353748035,1740006650748,-500.0,0.00013698,2]
[353748037,1740006650758,-242.5024786,0.0001378,2]
[353748047,1740006650878,-257.4975214,0.0001378,2]
[353748049,1740006650887,-394.12815373,0.00013863,2]
[353748121,1740007023880,164.299048,9.041e-05,2]
[353748146,1740007713114,1050.37210985,0.00018187,90]
[353748179,1740007832611,-700.0,0.00013068,2]
[353748180,1740007832620,-152.34220995,0.00013598,2]
[353748181,1740007832630,-3000.0,0.0001368,2]
[353748182,1740007832641,-205.85998345,0.00013697,2]
[353748183,1740007832650,-584.14306582,0.00013697,2]
[353748184,1740007832660,-160.41455158,0.00013697,2]
[353748185,1740007832671,-300.0,0.00013697,2]
[353748186,1740007832681,-500.0,0.00013698,2]
[353748187,1740007832691,-291.58,0.00013698,2]
[353748188,1740007832701,-525.17211004,0.00013698,2]
[353748189,1740007832711,-500.0,0.00013698,2]
[353748190,1740007832725,-500.0,0.00013698,2]
[353748191,1740007832735,-500.0,0.00013698,2]
[353748192,1740007832745,-500.0,0.00013698,2]
[353748193,1740007832755,-500.0,0.00013698,2]
[353748194,1740007832764,-500.0,0.00013698,2]
[353748195,1740007832774,-500.0,0.00013698,2]
[353748196,1740007832783,-500.0,0.00013698,2]
[353748198,1740007832792,-500.0,0.00013698,2]
[353748199,1740007832802,-503.51976482,0.00013698,2]
[353748201,1740007832811,-500.0,0.00013698,2]
[353748202,1740007832821,-500.0,0.00013698,2]
[353748203,1740007832830,-500.0,0.00013698,2]
[353748205,1740007832839,-500.0,0.00013698,2]
[353748207,1740007832848,-500.0,0.00013698,2]
[353748209,1740007832858,-500.0,0.00013698,2]
[353748211,1740007832868,-500.0,0.00013698,2]
[353748213,1740007832877,-500.0,0.00013698,2]
[353748215,1740007832887,-500.0,0.00013698,2]
[353748217,1740007832898,-500.0,0.00013698,2]
[353748219,1740007832908,-500.0,0.00013698,2]
[353748222,1740007832918,-500.0,0.00013698,2]
[353748224,1740007832929,-500.0,0.00013698,2]
[353748226,1740007832939,-500.0,0.00013698,2]
[353748228,1740007832950,-500.0,0.00013698,2]
[353748230,1740007832962,-500.0,0.00013698,2]
[353748232,1740007832975,-500.0,0.00013698,2]
[353748233,1740007832985,-500.0,0.00013698,2]
[353748235,1740007832995,-500.0,0.00013698,2]
[353748236,1740007833004,-500.0,0.00013698,2]
[353748238,1740007833015,-500.0,0.00013698,2]
[353748239,1740007833025,-500.0,0.00013698,2]
[353748241,1740007833035,-500.0,0.00013698,2]
[353748243,1740007833048,-500.0,0.00013698,2]
[353748244,1740007833058,-500.0,0.00013698,2]
[353748246,1740007833069,-500.0,0.00013698,2]
[353748248,1740007833079,-500.0,0.00013698,2]
[353748249,1740007833090,-500.0,0.00013698,2]
[353748251,1740007833101,-500.0,0.00013698,2]
[353748252,1740007833111,-500.0,0.00013698,2]
[353748254,1740007833122,-500.0,0.00013698,2]
[353748255,1740007833132,-500.0,0.00013698,2]
[353748257,1740007833143,-500.0,0.00013698,2]
[353748259,1740007833154,-592.0,0.00013698,2]
[353748260,1740007833164,-500.0,0.00013698,2]
[353748261,1740007833175,-500.0,0.00013698,2]
[353748262,1740007833185,-657.49,0.00013698,2]
[353748263,1740007833195,-500.0,0.00013698,2]
[353748264,1740007833206,-500.0,0.00013698,2]
[353748265,1740007833218,-598.75986233,0.00013698,2]
[353748266,1740007833228,-500.0,0.00013698,2]
[353748267,1740007833238,-500.0,0.00013698,2]
[353748268,1740007833250,-635.48,0.00013698,2]
[353748269,1740007833261,-500.0,0.00013698,2]
[353748270,1740007833271,-1029.91,0.00013698,2]
[353748271,1740007833281,-13095.92,0.00013698,2]
[353748272,1740007833292,-609.35,0.00013698,2]
[353748273,1740007833302,-3545.35,0.00013698,2]
[353748274,1740007833313,-500.0,0.00013698,2]
[353748275,1740007833324,-878.19,0.00013698,2]
[353748276,1740007833335,-505.13,0.00013698,2]
[353748277,1740007833347,-1579.9,0.00013698,2]
[353748278,1740007833358,-500.0,0.00013698,2]
[353748279,1740007833368,-500.0,0.00013698,2]
[353748280,1740007833379,-500.0,0.00013698,2]
[353748281,1740007833389,-500.0,0.00013698,2]
[353748282,1740007833399,-1094.91,0.00013698,2]
[353748283,1740007833409,-500.0,0.00013698,2]
[353748284,1740007833419,-500.0,0.00013698,2]
[353748285,1740007833429,-506.12,0.00013698,2]
[353748286,1740007833439,-837.32,0.00013698,2]
[353748287,1740007833449,-500.0,0.00013698,2]
[353748288,1740007833461,-500.0,0.00013698,2]
[353748289,1740007833473,-500.0,0.00013698,2]
[353748290,1740007833483,-519.46,0.00013698,2]
[353748291,1740007833493,-500.0,0.00013698,2]
[353748292,1740007833503,-500.0,0.00013698,2]
[353748293,1740007833513,-569.71462104,0.00013698,2]
[353748294,1740007833523,-530.89,0.00013698,2]
[353748295,1740007833533,-500.0,0.00013698,2]
[353748296,1740007833544,-500.0,0.00013698,2]
[353748297,1740007833555,-500.0,0.00013698,2]
[353748298,1740007833566,-500.0,0.00013698,2]
[353748299,1740007833577,-500.0,0.00013698,2]
[353748300,1740007833586,-500.0,0.00013698,2]
[353748301,1740007833755,-500.0,0.00013698,2]
[353748302,1740007833777,-500.0,0.00013698,2]
[353748303,1740007833788,-500.0,0.00013698,2]
[353748304,1740007833799,-500.0,0.00013698,2]
[353748305,1740007833810,-500.0,0.00013698,2]
[353748306,1740007833820,-500.0,0.00013698,2]
[353748307,1740007833830,-500.0,0.00013698,2]
[353748308,1740007833841,-1120.39,0.00013698,2]
[353748309,1740007833852,-503.16522921,0.00013698,2]
[353748310,1740007833863,-2629.32,0.00013698,2]
[353748311,1740007833873,-3542.88,0.00013698,2]
[353748312,1740007833884,-500.0,0.00013698,2]
[353748313,1740007833894,-764.54,0.00013698,2]
[353748314,1740007833904,-500.0,0.00013698,2]
[353748315,1740007833915,-500.0,0.00013698,2]
[353748316,1740007833925,-735.25,0.00013698,2]
[353748317,1740007833935,-500.0,0.00013698,2]
[353748318,1740007833944,-200.548904,0.00013699,2]
[353748319,1740007833956,-131.25533097,0.00013699,2]
[353748320,1740007834085,-69.49104053,0.00013699,2]
[353748321,1740007834095,-13566.51508494,0.00013762,2]
[353748322,1740007834106,-183.71051976,0.00013779,2]
[353748323,1740007834115,-500.0,0.00013779,2]
[353748324,1740007834125,-215.83121946,0.00013779,2]
[353748325,1740007834135,-500.0,0.00013779,2]
[353748326,1740007834145,-500.0,0.00013779,2]
[353748327,1740007834155,-500.0,0.00013779,2]
[353748328,1740007834165,-500.0,0.0001378,2]
[353748329,1740007834175,-252.59560907,0.0001378,2]
[353748330,1740007834185,-500.0,0.0001378,2]
[353748331,1740007834196,-500.0,0.0001378,2]
[353748332,1740007834206,-500.0,0.0001378,2]
[353748333,1740007834218,-500.0,0.0001378,2]
[353748334,1740007834228,-500.0,0.0001378,2]
[353748335,1740007834238,-500.0,0.0001378,2]
[353748336,1740007834248,-500.0,0.0001378,2]
[353748337,1740007834259,-500.0,0.0001378,2]
[353748338,1740007834269,-500.0,0.0001378,2]
[353748339,1740007834280,-500.0,0.0001378,2]
[353748340,1740007834291,-217.47255676,0.0001378,2]
[353748341,1740007834300,-500.0,0.0001378,2]
[353748342,1740007834310,-647.51481865,0.0001378,2]
[353748343,1740007834320,-500.0,0.0001378,2]
[353748344,1740007834329,-500.0,0.0001378,2]
[353748345,1740007834338,-500.0,0.0001378,2]
[353748346,1740007834349,-404.86,0.0001378,2]
[353748347,1740007834358,-500.0,0.0001378,2]
[353748348,1740007834368,-500.0,0.0001378,2]
[353748349,1740007834378,-500.0,0.0001378,2]
[353748350,1740007834389,-500.0,0.0001378,2]
[353748351,1740007834399,-500.0,0.0001378,2]
[353748352,1740007834409,-592.0,0.0001378,2]
[353748353,1740007834419,-657.49,0.0001378,2]
[353748354,1740007834429,-500.0,0.0001378,2]
[353748355,1740007834439,-500.0,0.0001378,2]
[353748356,1740007834450,-500.0,0.0001378,2]
[353748357,1740007834460,-503.30253068,0.0001378,2]
[353748358,1740007834471,-635.48,0.0001378,2]
[353748359,1740007834480,-500.0,0.0001378,2]
[353748360,1740007834490,-13095.92,0.0001378,2]
[353748361,1740007834499,-609.35,0.0001378,2]
[353748362,1740007834510,-3545.35,0.0001378,2]
[353748363,1740007834519,-878.19,0.0001378,2]
[353748364,1740007834529,-505.13,0.0001378,2]
[353748365,1740007834539,-1579.9,0.0001378,2]
[353748366,1740007834549,-500.0,0.0001378,2]
[353748367,1740007834559,-500.0,0.0001378,2]
[353748368,1740007834569,-500.0,0.0001378,2]
[353748369,1740007834579,-1094.91,0.0001378,2]
[353748370,1740007834588,-500.0,0.0001378,2]
[353748371,1740007834599,-506.12,0.0001378,2]
[353748372,1740007834608,-837.32,0.0001378,2]
[353748373,1740007834618,-500.0,0.0001378,2]
[353748374,1740007834627,-500.0,0.0001378,2]
[353748375,1740007834637,-500.0,0.0001378,2]
[353748376,1740007834646,-519.46,0.0001378,2]
[353748377,1740007834656,-500.0,0.0001378,2]
[353748378,1740007834666,-500.0,0.0001378,2]
[353748379,1740007834675,-530.89,0.0001378,2]
[353748380,1740007834685,-500.0,0.0001378,2]
[353748381,1740007834694,-500.0,0.0001378,2]
[353748382,1740007834703,-319.25468152,0.0001378,2]
[353748383,1740007834713,-500.0,0.0001378,2]
[353748384,1740007834723,-500.0,0.0001378,2]
[353748385,1740007834733,-1120.39,0.0001378,2]
[353748386,1740007834742,-2629.32,0.0001378,2]
[353748387,1740007834753,-3542.88,0.0001378,2]
[353748388,1740007834763,-500.0,0.0001378,2]
[353748389,1740007834773,-40.65439667,0.0001378,2]
[353748390,1740007834786,-335.73190878,0.0001378,2]
[353748391,1740007834802,-319.63052135,0.0001378,2]
[353748392,1740007834819,-68.5231732,0.0001378,2]
[353748393,1740007834829,-242.10486826,0.0001378,2]
[353748394,1740007834839,-128.61869331,0.0001378,2]
[353748395,1740007834851,-371.38130669,0.0001378,2]
[353748396,1740007834861,-735.25,0.0001378,2]
[353748397,1740007834871,-500.0,0.0001378,2]
[353748398,1740007834881,-1965.32022632,0.00013862,2]
[353748399,1740007834891,-500.0,0.00013862,2]
[353748400,1740007834900,-243.49629522,0.00013862,2]
[353748401,1740007834910,-499.99622996,0.00013863,2]
[353748402,1740007834919,-500.0,0.00013863,2]
[353748403,1740007834929,-500.0,0.00013863,2]
[353748404,1740007834939,-597.41,0.00013863,2]
[353748405,1740007834948,-500.0,0.00013863,2]
[353748406,1740007834959,-500.0,0.00013863,2]
[353748407,1740007834971,-500.0,0.00013863,2]
[353748408,1740007834980,-500.0,0.00013863,2]
[353748409,1740007834990,-500.0,0.00013863,2]
[353748410,1740007834999,-500.0,0.00013863,2]
[353748411,1740007835010,-179.62191561,0.00013863,2]
[353748412,1740007835019,-500.0,0.00013863,2]
[353748413,1740007835029,-500.0,0.00013863,2]
[353748414,1740007835038,-500.0,0.00013863,2]
[353748415,1740007835050,-500.0,0.00013863,2]
[353748416,1740007835061,-500.0,0.00013863,2]
[353748417,1740007835071,-500.0,0.00013863,2]
[353748418,1740007835082,-500.0,0.00013863,2]
[353748419,1740007835092,-500.0,0.00013863,2]
[353748420,1740007835102,-500.0,0.00013863,2]
[353748421,1740007835112,-592.0,0.00013863,2]
[353748422,1740007835121,-657.49,0.00013863,2]
[353748423,1740007835131,-500.0,0.00013863,2]
[353748424,1740007835140,-500.0,0.00013863,2]
[353748425,1740007835150,-500.0,0.00013863,2]
[353748426,1740007835159,-635.48,0.00013863,2]
[353748427,1740007835169,-500.0,0.00013863,2]
[353748428,1740007835179,-13095.92,0.00013863,2]
[353748429,1740007835189,-609.35,0.00013863,2]
[353748430,1740007835198,-3545.35,0.00013863,2]
[353748431,1740007835210,-878.19,0.00013863,2]
[353748432,1740007835222,-505.13,0.00013863,2]
[353748433,1740007835232,-1579.9,0.00013863,2]
[353748434,1740007835243,-194.14579225,0.00013863,2]
[353748444,1740007838333,-500.0,0.00013698,2]
[353748445,1740007838342,-43.51006707,0.0001378,2]
[353748446,1740007838470,-456.48993293,0.0001378,2]
[353748449,1740007838480,-305.85420775,0.00013863,2]
[353748452,1740007838489,-500.0,0.00013863,2]
[353748454,1740007838499,-500.0,0.00013863,2]
[353748457,1740007838508,-1094.91,0.00013863,2]
[353748460,1740007838518,-506.12,0.00013863,2]
[353748461,1740007838528,-837.32,0.00013863,2]
[353748462,1740007838537,-500.0,0.00013863,2]
[353748463,1740007838546,-514.74,0.00013863,2]
[353748464,1740007838556,-84.56585932,0.00013863,2]
[353748465,1740007838568,-415.43414068,0.00013863,2]
[353748466,1740007838578,-519.46,0.00013863,2]
[353748467,1740007838587,-500.0,0.00013863,2]
[353748468,1740007838597,-500.0,0.00013863,2]
[353748469,1740007838606,-530.89,0.00013863,2]
[353748470,1740007838616,-500.0,0.00013863,2]
[353748471,1740007838626,-500.0,0.00013863,2]
[353748472,1740007838635,-177.1561304,0.00013863,2]
[353748473,1740007838647,-322.8438696,0.00013863,2]
[353748474,1740007838656,-605.4850326,0.00013863,2]
[353748477,1740007842262,-500.0,0.00013698,2]
[353748478,1740007842272,-500.0,0.00013699,2]
[353748479,1740007842282,-500.0,0.00013699,2]
[353748480,1740007842291,-275.37495206,0.00013699,2]
[353748481,1740007842300,-500.0,0.00013699,2]
[353748482,1740007842309,-500.0,0.00013699,2]
[353748483,1740007842319,-500.0,0.0001378,2]
[353748484,1740007842329,-455.68496752,0.00013863,2]
[353748485,1740007842340,-59.21999988,0.00013863,2]
[353748486,1740007842350,-223.38000012,0.00013863,2]
[353748487,1740007842362,-513.329243,0.00013863,2]
[353748488,1740007842374,-1892.61075688,0.00013863,2]
[353748489,1740007842383,-945.28924315,0.00013863,2]
[353748490,1740007842394,-2597.59075685,0.00013863,2]
[353748491,1740007842404,-240.56166616,0.00013863,2]
[353748492,1740007842415,-259.43833384,0.00013863,2]
[353748493,1740007842425,-764.54,0.00013863,2]
[353748495,1740007842434,-500.0,0.00013863,2]
[353748496,1740007842444,-735.25,0.00013863,2]
[353748497,1740007842453,-500.0,0.00013863,2]
[353748498,1740007842463,-500.0,0.00013863,2]
[353748499,1740007842473,-599.28184627,0.00013863,2]
[353748500,1740007842483,-500.0,0.00013945,2]
[353748501,1740007842492,-500.0,0.00013945,2]
[353748502,1740007842502,-500.0,0.00013945,2]
[353748503,1740007842512,-500.0,0.00013945,2]
[353748504,1740007842521,-500.0,0.00013945,2]
[353748505,1740007842531,-500.0,0.00013945,2]
[353748506,1740007842540,-500.0,0.00013945,2]
[353748507,1740007842550,-500.0,0.00013945,2]
[353748508,1740007842560,-500.0,0.00013945,2]
[353748509,1740007842569,-500.0,0.00013945,2]
[353748510,1740007842579,-500.0,0.00013945,2]
[353748511,1740007842589,-500.0,0.00013945,2]
[353748512,1740007842598,-500.0,0.00013945,2]
[353748513,1740007842607,-500.0,0.00013945,2]
[353748514,1740007842617,-500.0,0.00013945,2]
[353748515,1740007842627,-500.0,0.00013945,2]
[353748516,1740007842636,-657.49,0.00013945,2]
[353748517,1740007842646,-500.0,0.00013945,2]
[353748518,1740007842655,-191.39475227,0.00013945,2]
[353748519,1740007842664,-635.48,0.00013945,2]
[353748520,1740007842677,-500.0,0.00013945,2]
[353748521,1740007842687,-13095.92,0.00013945,2]
[353748522,1740007842696,-609.35,0.00013945,2]
[353748523,1740007842705,-3545.35,0.00013945,2]
[353748524,1740007842715,-878.19,0.00013945,2]
[353748525,1740007842725,-505.13,0.00013945,2]
[353748526,1740007842735,-1579.9,0.00013945,2]
[353748527,1740007842745,-500.0,0.00013945,2]
[353748528,1740007842754,-500.0,0.00013945,2]
[353748529,1740007842764,-495.47,0.00013945,2]
[353748530,1740007842774,-1094.91,0.00013945,2]
[353748531,1740007842784,-506.12,0.00013945,2]
[353748532,1740007842794,-837.32,0.00013945,2]
[353748533,1740007842803,-500.0,0.00013945,2]
[353748534,1740007842813,-328.06384719,0.00013945,2]
[353748535,1740007842822,-519.46,0.00013945,2]
[353748537,1740007842832,-500.0,0.00013945,2]
[353748538,1740007842842,-500.0,0.00013945,2]
[353748539,1740007842851,-530.89,0.00013945,2]
[353748540,1740007842861,-500.0,0.00013945,2]
[353748541,1740007842871,-500.0,0.00013945,2]
[353748542,1740007842880,-1120.39,0.00013945,2]
[353748543,1740007842891,-2629.32,0.00013945,2]
[353748545,1740007842901,-3542.88,0.00013945,2]
[353748546,1740007842911,-500.0,0.00013945,2]
[353748547,1740007842921,-764.54,0.00013945,2]
[353748548,1740007842931,-500.0,0.00013945,2]
[353748550,1740007842942,-735.25,0.00013945,2]
[353748551,1740007842952,-500.0,0.00013945,2]
[353748552,1740007842966,-500.0,0.00013945,2]
[353748553,1740007842978,-153.0000001,0.00014,2]
[353748556,1740007842989,-153.5365275,0.00014,2]
[353748557,1740007842999,-500.0,0.00014004,2]
[353748559,1740007843009,-500.0,0.00014011,2]
[353748560,1740007843019,-424.80034628,0.00014026,2]
[353748561,1740007843030,-500.0,0.00014027,2]
[353748562,1740007843039,-500.0,0.00014027,2]
[353748563,1740007843050,-500.0,0.00014027,2]
[353748564,1740007843061,-500.0,0.00014027,2]
[353748566,1740007843071,-500.0,0.00014027,2]
[353748567,1740007843080,-500.0,0.00014027,2]
[353748568,1740007843090,-500.0,0.00014027,2]
[353748569,1740007843100,-500.0,0.00014027,2]
[353748570,1740007843110,-500.0,0.00014027,2]
[353748571,1740007843119,-500.0,0.00014027,2]
[353748572,1740007843129,-500.0,0.00014027,2]
[353748573,1740007843139,-657.49,0.00014027,2]
[353748574,1740007843149,-500.0,0.00014027,2]
[353748575,1740007843159,-635.48,0.00014027,2]
[353748576,1740007843168,-500.0,0.00014027,2]
[353748577,1740007843178,-13095.92,0.00014027,2]
[353748578,1740007843189,-609.35,0.00014027,2]
[353748579,1740007843199,-3545.35,0.00014027,2]
[353748580,1740007843209,-878.19,0.00014027,2]
[353748581,1740007843219,-505.13,0.00014027,2]
[353748583,1740007843230,-1579.9,0.00014027,2]
[353748585,1740007843239,-500.0,0.00014027,2]
[353748586,1740007843249,-500.0,0.00014027,2]
[353748587,1740007843259,-1094.91,0.00014027,2]
[353748588,1740007843268,-506.12,0.00014027,2]
[353748589,1740007843402,-837.32,0.00014027,2]
[353748590,1740007843412,-500.0,0.00014027,2]
[353748591,1740007843422,-519.46,0.00014027,2]
[353748592,1740007843431,-500.0,0.00014027,2]
[353748593,1740007843440,-500.0,0.00014027,2]
[353748594,1740007843450,-530.89,0.00014027,2]
[353748595,1740007843460,-500.0,0.00014027,2]
[353748596,1740007843469,-500.0,0.00014027,2]
[353748597,1740007843480,-1120.39,0.00014027,2]
[353748598,1740007843490,-2629.32,0.00014027,2]
[353748599,1740007843499,-3542.88,0.00014027,2]
[353748600,1740007843508,-500.0,0.00014027,2]
[353748601,1740007843518,-764.54,0.00014027,2]
[353748602,1740007843527,-500.0,0.00014027,2]